Cogmind - Beta 14 @@@ ROGUE MODE // 2024.09.01 @ 14:32:57 Player: Helstads_dog Result: Destroyed by GY-H70(R) with Subdweller Laser Performance ------------- Evolutions (0) 0 Regions Visited (3) 600 Robots Destroyed (22) 110 Value Destroyed (580) 580 Prototype IDs (3) 60 Alien Tech Used (0) 0 Bonus (0) 0 TOTAL SCORE: 1350 Bonus ------- None Cogmind --------- Core Integrity 0/250 Matter 247/300 Energy 212/265 System Corruption 0% Temperature Cool (6) Movement Treading (160) Location -10/Subcaves Parts ------- > --- POWER (1) -------- Improved Ion Engine > --- PROPULSION (2) --- Light Treads Light Treads > --- UTILITY (2) ------ Large Storage Unit Signal Interpreter > --- WEAPON (2) ------- Beam Rifle Beam Rifle > --- INVENTORY (15) --- Improved Ion Engine Light Treads Light Treads Light Treads Hardened Light Armor Plating Hardened Light Armor Plating Hardened Light Armor Plating Hardened Light Armor Plating Beam Rifle Beam Rifle Rocket Launcher Peak State ------------ > --- POWER ------------ Improved Ion Engine > --- PROPULSION ------- Light Treads Light Treads > --- UTILITY ---------- Large Storage Unit Hardened Light Armor Plating > --- WEAPON ----------- Beam Rifle Assault Rifle > --- INVENTORY -------- Improved Ion Engine Improved Ion Engine Light Treads Light Treads Light Treads Light Treads Hardened Light Armor Plating Hardened Light Armor Plating Hardened Light Armor Plating Beam Rifle Beam Rifle Beam Rifle Light Cannon Rocket Launcher [Rating: 12] Favorites ----------- Power Improved Ion Engine Engine Improved Ion Engine Propulsion Light Treads Treads Light Treads Leg Aluminum Leg Utility Large Storage Unit Device ECM Suite Storage Large Storage Unit Processor Signal Interpreter Protection Hardened Light Armor Plating Weapon Assault Rifle Energy Gun EM Pulse Gun Ballistic Gun Assault Rifle Ballistic Cannon Light Cannon Build | -11 -10 -10 -10 ------- Run | Yrd Mat Min Sub Slots Evolved . | . . . . Power . | . . . . Propulsion . | . . . . Utility . | . . . . Weapon . | . . . . Parts Attached 25 | 6 13 2 4 Power 5 | 1 3 . 1 Engine 5 | 1 3 . 1 Core . | . . . . Reactor . | . . . . Propulsion 5 | 2 2 . 1 Treads 3 | . 2 . 1 Leg 2 | 2 . . . Wheel . | . . . . Hover . | . . . . Flight . | . . . . Utility 8 | 1 6 1 . Device 2 | . 2 . . Storage 3 | 1 2 . . Processor 2 | . 1 1 . Hackware . | . . . . Protection 1 | . 1 . . Artifact . | . . . . Weapon 7 | 2 2 1 2 Energy Gun 4 | 1 1 1 1 Energy Cannon . | . . . . Ballistic Gun 2 | 1 1 . . Ballistic Cannon 1 | . . . 1 Launcher . | . . . . Special Weapon . | . . . . Impact Weapon . | . . . . Slashing Weapon . | . . . . Piercing Weapon . | . . . . Special Melee Weapon . | . . . . Unidentified Prototypes . | . . . . Parts Lost 5 | . . 1 4 Power 1 | . . . 1 Propulsion 1 | . . . 1 Utility . | . . . . Weapon 3 | . . 1 2 Highest Loss Streak 4 | . . 1 4 To Critical Strikes . | . . . . Average Slot Usage (%) 99 | . 99 99 99 Engine 14 | . 14 14 14 Treads 24 | . 20 28 28 Leg 3 | . 7 . . Storage 14 | . 14 14 14 Processor 3 | . 2 3 14 Protection 9 | . 9 10 . Energy Gun 13 | . 13 13 14 Ballistic Gun 13 | . 14 14 11 Peak Build Rating 12 | 6 11 12 11 Average Rating 10 | 4 9 11 10 On Entrance 7 | . 6 11 11 Naked Turns . | . . . . Heaviest Build 37 | 12 36 37 33 Greatest Support 40 | 20 40 40 40 Greatest Overweight (x) 3 | 3 . . . Average Overweight (x) . | . . . . Largest Inventory Capacity 15 | 8 15 15 15 Average Capacity 14 | 7 13 15 15 Most Carried 15 | 5 15 15 15 Average Carried 13 | 2 12 14 14 Final Capacity 15 | 8 15 15 15 Final Carried 15 | 3 15 15 11 Class Distribution -------------------- 100% | Mutant Dominant Class ---------------- Mutant | -10/Materials Mutant | -10/Mines Mutant | -10/Subcaves Resources | -11 -10 -10 -10 ----------- Run | Yrd Mat Min Sub Matter Collected 538 | 147 345 35 11 Remotely . | . . . . Salvage Created 768 | . 460 184 124 Parts 50 | . 32 9 9 Haulers Intercepted 1 | . 1 . . Recyclers Shooed . | . . . . Parts Field Recycled . | . . . . Retrieved Matter . | . . . . Parts Self-Destructed 4 | . . . 4 Prevented . | . . . . Kills | -11 -10 -10 -10 ------- Run | Yrd Mat Min Sub Combat Hostiles Destroyed 18 | . 11 4 3 Guns 17 | . 11 3 3 AOE 1 | . . 1 . Classes Destroyed 7 | . 5 . 2 Hauler 1 | . 1 . . Operator 1 | . 1 . . Watcher 2 | . 2 . . Swarmer 6 | . 6 . . Grunt 9 | . 5 4 . Sentry 1 | . . . 1 Subdweller 2 | . . . 2 Best Kill Streak 3 | . 3 2 2 Combat Bots Only 3 | . 3 2 2 Max Kills in Single Turn 1 | . 1 1 1 Gunslinging . | . . . . Exploded 1 | . . 1 . Melee . | . . . . Uniques/NPCs Destroyed . | . . . . Combat | -11 -10 -10 -10 -------- Run | Yrd Mat Min Sub Hostile Shots Fired 111 | . 54 6 51 Missed 29 | . 12 . 17 Damage Taken 1270 | . 428 143 699 Core 257 | . 68 29 160 Absorbed by Shields . | . . . . Regen/Repaired (Parts) 38 | . 38 . . Core Remaining (%) 100 | 100 . . . Volleys Fired 56 | . 38 6 12 Largest 2 | . 2 2 2 Hottest 112 | . 60 76 112 Shots Fired 110 | . 76 11 23 Gun 103 | . 76 11 16 Cannon 7 | . . . 7 Launcher . | . . . . Special . | . . . . Kinetic 54 | . 38 6 10 Thermal 16 | . . 3 13 Explosive . | . . . . Electromagnetic 40 | . 38 2 . Robot Hit Streak 7 | . 7 5 7 Robot Miss Streak 4 | . 4 1 3 Penetration Max . | . . . . Secondary Targets 1 | . 1 . . Max Gunslinging Chain 1 | . 1 . . Shots Hit Robots 73 | . 49 7 17 Core Hits 38 | . 22 6 10 Critical Kills 1 | . . 1 . Critical Parts Destroyed . | . . . . Critical Strikes 5 | . 2 1 2 Burn 1 | . . . 1 Destroy 1 | . . 1 . Blast 1 | . . . 1 Corrupt 2 | . 2 . . Melee Attacks . | . . . . Impact . | . . . . Slashing . | . . . . Piercing . | . . . . Sneak Attacks . | . . . . Combat Hostiles . | . . . . Follow-up Attacks . | . . . . Damage Inflicted 1043 | . 606 188 249 Guns 884 | . 606 96 182 Cannons 67 | . . . 67 Explosions 92 | . . 92 . Melee . | . . . . Ramming . | . . . . Kinetic 409 | . 281 25 103 Thermal 283 | . . 137 146 Explosive . | . . . . Electromagnetic 351 | . 325 26 . Impact . | . . . . Slashing . | . . . . Piercing . | . . . . Highest Corruption . | . . . . Average Corruption . | . . . . Corruption Purged . | . . . . Corruption Blocked . | . . . . Overload Shots . | . . . . Overflow Damage 29 | . . 29 . Projectiles . | . . . . Explosions 29 | . . 29 . Melee . | . . . . Knockbacks 2 | . . . 2 Impact . | . . . . Kinetic 2 | . . . 2 Secondary . | . . . . Self-Inflicted Damage 56 | . . 56 . Shots 1 | . . 1 . Rammed 1 | . . 1 . Targets Rammed 1 | . . 1 . Kicked . | . . . . Crushed . | . . . . Highest Temperature 162 | . 162 117 9 Average Temperature 53 | . 54 51 5 Received Heat Transfer 327 | . 132 54 141 Siege Activations . | . . . . Robots Corrupted . | . . . . Combat Hostiles . | . . . . Parts Fried . | . . . . Impact Corruptions . | . . . . Robots Melted . | . . . . Combat Hostiles . | . . . . Parts Melted 1 | . . . 1 Heat Transferred 655 | . . 211 444 Parts Sabotaged . | . . . . Parts Stolen . | . . . . Parts Stripped . | . . . . Power Chain Reactions 1 | . . 1 . Alert | -11 -10 -10 -10 ------- Run | Yrd Mat Min Sub Peak Influence 182 | . 182 63 . Initial 14 | . . 14 . Average 36 | . 55 16 . Maximum Alert Level . | . . . . Low Security (%) 100 | 100 100 100 . Level 1 . | . . . . Level 2 . | . . . . Level 3 . | . . . . Level 4 . | . . . . Level 5 . | . . . . High Security . | . . . . Max Security . | . . . . Squads Dispatched 3 | . 3 . . Investigation 2 | . 2 . . Extermination . | . . . . Reinforcement 1 | . 1 . . Assault . | . . . . Garrison . | . . . . Intercept . | . . . . Searches Triggered . | . . . . Construction Impeded . | . . . . Haulers Reinforced . | . . . . Active Scanning Responses . | . . . . Cargo Convoy Interrupts . | . . . . Stealth | -11 -10 -10 -10 --------- Run | Yrd Mat Min Sub Distress Signals 2 | . 2 . . Communications Jammed . | . . . . Distress Signals . | . . . . Times Spotted 32 | . 18 4 10 Peak Tracking Total 8 | . 4 2 8 Tactical Retreats 1 | . 1 . . Traps | -11 -10 -10 -10 ------- Run | Yrd Mat Min Sub Traps Triggered 2 | . 2 . . Indirectly . | . . . . Trap Hack Attempts . | . . . . Triggered . | . . . . Disarmed . | . . . . Reprogrammed . | . . . . Reused . | . . . . Traps Extracted . | . . . . Installed . | . . . . Triggered . | . . . . Machines | -11 -10 -10 -10 ---------- Run | Yrd Mat Min Sub Machines Disabled . | . . . . Max in Single Turn . | . . . . Machines Repaired . | . . . . Machines Dismantled . | . . . . Machines Sabotaged . | . . . . Overloaded Fab Kills . | . . . . Hacking | -11 -10 -10 -10 --------- Run | Yrd Mat Min Sub Machines Accessed 8 | . 8 . . Terminals 7 | . 7 . . Fabricators . | . . . . Repair Stations 1 | . 1 . . Recycling Units . | . . . . Scanalyzers . | . . . . Garrison Access . | . . . . Total Hacks 27 | . 27 . . Successful 6 | . 6 . . Failed 21 | . 21 . . Catastrophic 8 | . 8 . . Database Lockouts . | . . . . Manual 18 | . 18 . . Terminals 25 | . 25 . . Fabricators . | . . . . Repair Stations 2 | . 2 . . Recycling Units . | . . . . Scanalyzers . | . . . . Garrison Access . | . . . . Terminal Hacks 4 | . 4 . . Prototype ID Bank 2 | . 2 . . Branch Access Points 1 | . 1 . . Locate Traps 1 | . 1 . . Fabricator Hacks . | . . . . Repair Station Hacks 2 | . 2 . . Scan Component 1 | . 1 . . Repair 1 | . 1 . . Recycling Unit Hacks . | . . . . Scanalyzer . | . . . . Garrison Access Hacks . | . . . . Unauthorized Hacks . | . . . . Terminals . | . . . . Fabricators . | . . . . Repair Stations . | . . . . Recycling Units . | . . . . Scanalyzers . | . . . . Garrison Access . | . . . . Data Cores Recovered . | . . . . Used . | . . . . Hacking Detections 7 | . 7 . . Full Trace Events 1 | . 1 . . Feedback Events . | . . . . Feedback Blocked . | . . . . Robot Schematics Acquired . | . . . . Robots Built . | . . . . Authchips . | . . . . Time . | . . . . Total Robot Build Rating . | . . . . Part Schematics Acquired . | . . . . Parts Built . | . . . . Authchips . | . . . . Time . | . . . . Total Part Build Rating . | . . . . Parts Repaired 1 | . 1 . . Time 26 | . 26 . . Parts Recycled . | . . . . Recycled Matter . | . . . . Retrieved Matter . | . . . . Retrieved Components . | . . . . Parts Scanalyzed . | . . . . Part Schematics Acquired . | . . . . Parts Damaged . | . . . . Bothacking | -11 -10 -10 -10 ------------ Run | Yrd Mat Min Sub Used RIF Installer . | . . . . Robots Hacked . | . . . . Non-combat . | . . . . Combat . | . . . . Robot Hacks Applied . | . . . . Relay Couplers Released . | . . . . Fabnet Peak Effective % . | . . . . Robots Rewired . | . . . . Allies Hacked . | . . . . Hacks Repelled . | . . . . Allies | -11 -10 -10 -10 -------- Run | Yrd Mat Min Sub Total Allies . | . . . . Largest Group . | . . . . Highest-Rated Group . | . . . . Highest-Rated Ally . | . . . . Total Orders . | . . . . Ally Attacks . | . . . . Total Damage . | . . . . Kills . | . . . . Allies Corrupted . | . . . . Allies Melted . | . . . . Intel | -11 -10 -10 -10 ------- Run | Yrd Mat Min Sub Robot Analysis Total . | . . . . Derelict Logs Recovered 1 | . . 1 . Drone Launches . | . . . . Drone Recoveries . | . . . . Exploration | -11 -10 -10 -10 ------------- Run | Yrd Mat Min Sub Turns Passed 2733 | 47 1303 1185 198 Spaces Moved 1468 | 32 701 659 76 Core 15 | 15 . . . Treads 1267 | . 532 659 76 Legs 186 | 17 169 . . Wheels . | . . . . Hover . | . . . . Flight . | . . . . Fastest Speed 50 | 50 120 160 160 Average Speed 154 | 109 150 160 160 Slowest Speed 200 | 200 160 160 160 Overloaded Moves . | . . . . Propulsion Burnouts . | . . . . Robots Hopped . | . . . . Cave-ins Triggered . | . . . . Exploration Rate (%) 52 | 3 96 101 9 Regions Visited 3 Branch Regions 2 Pre-discovered Areas 1 | . . 1 . Known Exits Taken 2 | . 1 1 . Unknown Exits Taken 1 | 1 . . . Scrap Searched 1 | . . 1 . Spaces Dug . | . . . . Terrain Destroyed 9 | . . 9 . Melee . | . . . . Projectile . | . . . . AOE 9 | . . 9 . Terrain Rammed . | . . . . Walls Destroyed . | . . . . Machines Disabled . | . . . . Actions | -11 -10 -10 -10 --------- Run | Yrd Mat Min Sub Total 1826 | 42 875 778 131 Wait 240 | . 91 110 39 Move 1465 | 31 700 658 76 Hop . | . . . . Pick Up 25 | 5 19 1 . Fast Attach 11 | 4 7 . . Attach 7 | 2 . 1 4 Detach . | . . . . Swap 7 | . 6 1 . Drop 14 | . 14 . . Fire 56 | . 38 6 12 Melee . | . . . . Ram . | . . . . Kick . | . . . . Crush 1 | . . 1 . Escape Stasis . | . . . . Rewire . | . . . . Trap . | . . . . Miscellaneous . | . . . . Route ------- -11/Scrapyard -10/Materials (discovered 5 exits: *Mat x3 / *Min x2) -10/Mines (discovered 3 exits: *Mat x2 / *Sub) -10/Subcaves (discovered 1 exit: *Mat) History --------- Turn | Location | Event 11 | -11/Scrapyard | Discovered new exit (range 16) 48 | -11/Scrapyard | Entered Materials 173 | -10/Materials | Discovered new exit (range 14) 210 | -10/Materials | Repaired EM Pulse Gun 321 | -10/Materials | Build established: Mutant 413 | -10/Materials | Identified exit to Mines 541 | -10/Materials | Discovered new exit (range 4) 684 | -10/Materials | Discovered new exit (range 16) 1070 | -10/Materials | Discovered new exit (range 14) 1351 | -10/Materials | Entered Mines 1483 | -10/Mines | Discovered new exit (range 13) 1502 | -10/Mines | Learned location of Zion (-7) 1973 | -10/Mines | Received a Rocket Launcher from a helpful Derelict 2030 | -10/Mines | Discovered new exit (range 6) 2241 | -10/Mines | Discovered new exit (range 6) 2252 | -10/Mines | Identified exit to Subcaves 2332 | -10/Mines | Identified exit to Materials 2536 | -10/Mines | Entered Subcaves 2673 | -10/Subcaves | Discovered new exit (range 10) 2687 | -10/Subcaves | Identified exit to Materials 2689 | -10/Subcaves | Ambushed by swarm of Subdwellers 2693 | -10/Subcaves | Ambushed by Subdwellers from Twisted Machinery 2693 | -10/Subcaves | Ambushed by Subdwellers from Twisted Machinery 2701 | -10/Subcaves | Core integrity fell below 50% 2733 | -10/Subcaves | Core integrity fell below 20% 2734 | -10/Subcaves | Destroyed by GY-H70(R) with Subdweller Laser Last Messages --------------- 02695_ 0H-BSJ(R) emerges from the Twisted Machinery. 02696_ LB-5HB(g): "Sorry we're late! Had another grouchy Sub to deal with. Who's the new fellow?" 02696_ Assault Rifle destroyed. 02697_ 3N-82T(h) suffers critical hit (Destroy). 02698_ 3N-82T(h) destroyed. 02699_ GY-P04(R) knocked back. 02701_ KM-L5E(g) suffers critical hit (Destroy). 02701_ KM-L5E(g) destroyed. 02702_ GY-P04(R) destroyed. 02704_ LB-5HB(g) destroyed. 02705_ Sub. Power Source melted. 02705_ 0H-BSJ(R) destroyed. 02709_ GY-H70(R) affixes Scrap Shield Fragment to Scrap Shield. 02710_ Imp. Ion Engine destroyed. 02716_ GY-H70(R) affixes Scrap Shield Fragment to Scrap Shield. 02726_ ER-AA4(R) Sub. Monowheel blasted off. 02726_ ER-AA4(R) knocked back. 02727_ Lgt. Cannon destroyed. 02731_ Lgt. Treads destroyed. Map ----- +----------------------------------------------------+ | ??????????????????????????????????# ####??? | | ??????????????????????????????????## # # ##?????? | | ???????????????????????????????????##### ##?????? | | ???????????????????????????????????????# #?????? | | ??????????????????????????????????????## %#?????? | | ??????????????????????????????????????# #?????? | | ??????????????????????????????????????# %% #?????? | | ????????????????????????????????????### %##????? | | ????????????????????????????????????# % #????? | | ????????????????????????????????????## ##????? | | ?????????????????????????????????????## ##?????? | | ??????????????????????????????????????# #??????? | | ??????????????????##????????????????### ### #& | | ??????????????????# ##????????####??#=% | | ??????????????????# ??????###% #### = ### ## | | ??????????????????# ?????##%*% #??##????? | | ??????????????????# ######%!" # # ##????????? | | ???????????????????# = #%["" #######?????????? | | ????????????????????# [%%"%"" ##???????????? | | ????????????????????#